fUST/lending_fUST_20260507
["ID","MTS","AMOUNT","RATE_DAILY","PERIOD"]
[421761334,1778117440000,-701.84,0.00012674,2]
[421761332,1778117440000,-175.9,0.00012674,2]
[421761336,1778117440000,-453.93,0.00012674,2]
[421761331,1778117440000,-500.0,0.00012674,2]
[421761318,1778117440000,-1060.03,0.00012673,2]
[421761315,1778117440000,-164.41,0.00012493,2]
[421761317,1778117440000,-177.1,0.00012565,2]
[421761312,1778117440000,-2361.73440133,0.00012429,2]
[421761310,1778117440000,-591.02462496,0.00012429,2]
[421761324,1778117440000,-500.0,0.00012673,2]
[421761308,1778117440000,-500.0,0.000124,2]
[421761745,1778117443000,-10412.76468092,0.00012801,2]
[421761771,1778117443000,-398.77670356,0.00012801,2]
[421761747,1778117443000,-4574.14783359,0.00012801,2]
[421762122,1778117446000,-217.8229351,0.00012927,2]
[421762120,1778117446000,-685.28709259,0.00012801,2]
[421762118,1778117446000,-15235.03681536,0.00012801,2]
[421762116,1778117446000,-1509.01105294,0.00012673,2]
[421763031,1778117760000,151.0,0.00019726,120]
[421763032,1778117811000,151.0,0.00019726,120]
[421763034,1778117820000,151.0,0.00019726,120]
[421763037,1778117829000,151.0,0.00019726,120]
[421763038,1778117838000,151.0,0.00019726,120]
[421763039,1778117846000,151.0,0.00019726,120]
[421763040,1778117854000,151.0,0.00019726,120]
[421763041,1778117862000,151.0,0.00019726,120]
[421763042,1778117872000,151.0,0.00019726,120]
[421763043,1778117882000,151.0,0.00019726,120]
[421763044,1778117893000,151.0,0.00019726,120]
[421763045,1778117905000,151.0,0.00019726,120]
[421763046,1778117913000,151.0,0.00019726,120]
[421763047,1778117922000,151.0,0.00019726,120]
[421763048,1778117931000,151.0,0.00019726,120]
[421763049,1778117938000,151.0,0.00019726,120]
[421763050,1778117947000,151.0,0.00019726,120]
[421763051,1778117958000,151.0,0.00019726,120]
[421763053,1778117972000,282.4,0.00019726,120]
[421763075,1778118631000,-669.27139491,0.00011039,2]
[421763076,1778118631000,-270.77580248,0.00011039,2]
[421763077,1778118631000,-1905.92221814,0.00011039,2]
[421763078,1778118631000,-728.0423262,0.00011039,2]
[421763113,1778118632000,-218.8775978,0.00012249,2]
[421763101,1778118632000,-249.12996958,0.00012249,2]
[421763110,1778118632000,-3986.07951321,0.00012249,2]
[421763095,1778118632000,-584.89,0.00012125,2]
[421763098,1778118632000,-161.57016804,0.00012224,2]
[421763107,1778118632000,-2242.16972618,0.00012249,2]
[421763087,1778118632000,-300.0,0.00011986,2]
[421763092,1778118632000,-300.0,0.00012087,2]
[421763089,1778118632000,-1318.33228331,0.00011987,2]
[421763085,1778118632000,-584.89,0.00011851,2]
[421763083,1778118632000,-500.27320012,0.00011851,2]
[421763079,1778118632000,-3401.38211555,0.00011151,2]
[421763081,1778118632000,-325.24432271,0.00011289,2]
[421763126,1778118632000,-444.61529076,0.00012249,2]
[421763104,1778118632000,-996.5198783,0.00012249,2]
[421763197,1778118640000,-3746.24925059,0.00012249,2]
[421763223,1778118641000,-584.89,0.00012399,2]
[421763222,1778118641000,-361.37,0.00012398,2]
[421763225,1778118641000,-375.99942386,0.00012602,2]
[421763232,1778118641000,-560.94401704,0.00012602,2]
[421763220,1778118641000,-209.45658083,0.00012398,2]
[421763221,1778118641000,-500.0,0.00012398,2]
[421763217,1778118641000,-500.0,0.00012398,2]
[421763213,1778118641000,-500.85517995,0.00012398,2]
[421763229,1778118641000,-560.94401704,0.00012602,2]
[421763228,1778118641000,-456.96182581,0.00012602,2]
[421763226,1778118641000,-560.94401704,0.00012602,2]
[421763230,1778118641000,-560.94401704,0.00012602,2]
[421763227,1778118641000,-560.94401704,0.00012602,2]
[421763218,1778118641000,-500.0,0.00012398,2]
[421763224,1778118641000,-3889.43387481,0.00012556,2]
[421763212,1778118641000,-500.0,0.00012398,2]
[421763214,1778118641000,-500.73514002,0.00012398,2]
[421763208,1778118641000,-501.16714306,0.00012398,2]
[421763198,1778118641000,-322.65030477,0.00012249,2]
[421763199,1778118641000,-1495.85679547,0.00012249,2]
[421763200,1778118641000,-8968.67890472,0.00012249,2]
[421763201,1778118641000,-673.3667145,0.00012249,2]
[421763202,1778118641000,-2693.466858,0.00012249,2]
[421763215,1778118641000,-500.0,0.00012398,2]
[421763211,1778118641000,-500.10531452,0.00012398,2]
[421763203,1778118641000,-6054.24013006,0.00012249,2]
[421763206,1778118641000,-470.20781878,0.00012397,2]
[421763207,1778118641000,-503.27184183,0.00012398,2]
[421763204,1778118641000,-2603.88307906,0.00012272,2]
[421763216,1778118641000,-500.0,0.00012398,2]
[421763209,1778118641000,-501.02948535,0.00012398,2]
[421763210,1778118641000,-452.11102764,0.00012398,2]
[421763205,1778118641000,-884.03,0.00012397,2]
[421763242,1778118641000,-500.0,0.00012602,2]
[421763240,1778118641000,-500.0,0.00012602,2]
[421763234,1778118641000,-560.94401704,0.00012602,2]
[421763266,1778118641000,-437.05497374,0.00012603,2]
[421763267,1778118641000,-645.68277805,0.00012603,2]
[421763264,1778118641000,-560.94401704,0.00012602,2]
[421763263,1778118641000,-500.0,0.00012602,2]
[421763262,1778118641000,-500.0,0.00012602,2]
[421763258,1778118641000,-500.0,0.00012602,2]
[421763260,1778118641000,-500.0,0.00012602,2]
[421763261,1778118641000,-560.94401704,0.00012602,2]
[421763256,1778118641000,-500.0,0.00012602,2]
[421763257,1778118641000,-500.0,0.00012602,2]
[421763259,1778118641000,-500.0,0.00012602,2]
[421763254,1778118641000,-345.61662371,0.00012602,2]
[421763265,1778118641000,-18126.88123244,0.00012603,2]
[421763249,1778118641000,-344.68942722,0.00012602,2]
[421763253,1778118641000,-154.38337629,0.00012602,2]
[421763255,1778118641000,-560.94401704,0.00012602,2]
[421763252,1778118641000,-257.0121842,0.00012602,2]
[421763233,1778118641000,-560.94401704,0.00012602,2]
[421763235,1778118641000,-560.94401704,0.00012602,2]
[421763237,1778118641000,-500.0,0.00012602,2]
[421763239,1778118641000,-500.0,0.00012602,2]
[421763248,1778118641000,-500.0,0.00012602,2]
[421763241,1778118641000,-500.0,0.00012602,2]
[421763236,1778118641000,-560.94401704,0.00012602,2]
[421763238,1778118641000,-500.0,0.00012602,2]
[421763245,1778118641000,-500.0,0.00012602,2]
[421763246,1778118641000,-500.0,0.00012602,2]
[421763244,1778118641000,-500.0,0.00012602,2]
[421763247,1778118641000,-560.94401704,0.00012602,2]
[421763250,1778118641000,-560.94401704,0.00012602,2]
[421763251,1778118641000,-500.0,0.00012602,2]
[421763243,1778118641000,-500.0,0.00012602,2]
[421763231,1778118641000,-560.94401704,0.00012602,2]
[421763276,1778118643000,-3951.26353864,0.00012603,2]
[421763277,1778118643000,-3881.22301545,0.00012603,2]
[421763281,1778118646000,-48446.19323464,0.00012603,2]
[421763282,1778118646000,-360.69996,0.00012603,2]
[421763285,1778118707000,4088.55978904,0.00019726,120]
[421763293,1778119404000,10000.0,0.00019,120]
[421763316,1778119775000,10346.85,0.00019726,120]
[421763350,1778119832000,-4759.40750764,0.00012,2]
[421763348,1778119832000,-151.32345922,0.00012,2]
[421763347,1778119832000,-1200.0,0.00011999,2]
[421763346,1778119832000,-300.0,0.00011999,2]
[421763344,1778119832000,-930.3449644,0.00011793,2]
[421763342,1778119832000,-456.2679462,0.00011751,2]
[421763345,1778119832000,-324.71760939,0.00011853,2]
[421763343,1778119832000,-4069.6550356,0.00011793,2]
[421763340,1778119832000,-257.27709277,0.00011751,2]
[421763341,1778119832000,-199.02383533,0.00011751,2]
[421763352,1778119832000,-1875.57172218,0.00012,2]
[421763464,1778119838000,-151.0,0.000125,2]
[421763450,1778119838000,-161.57016804,0.00012366,2]
[421763466,1778119838000,-151.0,0.000125,2]
[421763468,1778119838000,-500.0,0.00012501,2]
[421763472,1778119838000,-847.19,0.00012501,2]
[421763479,1778119838000,-500.0,0.00012504,2]
[421763470,1778119838000,-606.42532221,0.00012501,2]
[421763483,1778119838000,-1321.1770562,0.00012505,2]
[421763448,1778119838000,-1002.36,0.000123,2]
[421763473,1778119838000,-498.333,0.00012501,2]
[421763477,1778119838000,-500.0,0.00012504,2]
[421763462,1778119838000,-151.0,0.000125,2]
[421763456,1778119838000,-151.0,0.000125,2]
[421763459,1778119838000,-151.0,0.000125,2]
[421763452,1778119838000,-511.78,0.00012398,2]
[421763461,1778119838000,-151.0,0.000125,2]
[421763454,1778119838000,-151.0,0.000125,2]
[421763446,1778119838000,-160.0,0.00012283,2]
[421763444,1778119838000,-1083.0,0.00012,2]
[421763442,1778119838000,-4195.17071481,0.00012,2]
[421763440,1778119838000,-2105.35719235,0.00012,2]
[421763421,1778119838000,-428.47,0.00012,2]
[421763419,1778119838000,-2403.70485075,0.00012,2]
[421763411,1778119838000,-451.40333634,0.00012,2]
[421763481,1778119838000,-500.0,0.00012504,2]
[421763457,1778119838000,-151.0,0.000125,2]
[421763485,1778119838000,-6745.4198813,0.00012505,2]
[421763487,1778119838000,-456.2679462,0.00012573,2]
[421763530,1778119838000,-155.0,0.00013036,2]
[421763544,1778119838000,-1018.20324901,0.00013119,2]
[421763542,1778119838000,-152.73831997,0.00013052,2]
[421763540,1778119838000,-500.0,0.00013052,2]
[421763537,1778119838000,-500.0,0.00013052,2]
[421763546,1778119838000,-1376369.15477429,0.0001312,2]
[421763535,1778119838000,-500.0,0.00013049,2]
[421763522,1778119838000,-1482.79464123,0.000129,2]
[421763518,1778119838000,-831.0,0.00012893,2]
[421763520,1778119838000,-10000.0,0.000129,20]
[421763516,1778119838000,-4118.53261063,0.0001284,2]
[421763528,1778119838000,-2319.29054687,0.00013,2]
[421763525,1778119838000,-511.78,0.00012946,2]
[421763475,1778119838000,-500.0,0.00012501,2]
[421763513,1778119838000,-500.0,0.00012778,2]
[421763489,1778119838000,-151.0,0.00012603,2]
[421763532,1778119838000,-847.19,0.00013049,2]
[421763504,1778119838000,-500.0,0.00012775,2]
[421763506,1778119838000,-500.0,0.00012778,2]
[421763511,1778119838000,-500.0,0.00012778,2]
[421763495,1778119838000,-500.0,0.00012773,2]
[421763491,1778119838000,-500.0,0.00012603,2]
[421763493,1778119838000,-511.78,0.00012672,2]
[421763500,1778119838000,-234.50177888,0.00012775,2]
[421763502,1778119838000,-847.19,0.00012775,2]
[421763497,1778119838000,-500.0,0.00012773,2]
[421763498,1778119838000,-208.77,0.00012773,2]
[421763564,1778119839000,-5174.98467056,0.00013409,2]
[421763566,1778119839000,-321010.96608277,0.00013415,2]
[421763560,1778119839000,-500.0,0.00013326,2]
[421763562,1778119839000,-1482.79464118,0.00013331,2]
[421763558,1778119839000,-500.0,0.00013326,2]
[421763556,1778119839000,-500.0,0.00013323,2]
[421763551,1778119839000,-511.78,0.0001322,2]
[421763553,1778119839000,-847.19,0.00013323,2]
[421763549,1778119839000,-319.82132467,0.0001312,2]
[421763762,1778119840000,-267.85607508,0.00013415,2]
[421763759,1778119840000,-161.57016804,0.00012364,2]
[421763767,1778119840000,-1075.08886253,0.00013415,2]
[421763770,1778119840000,-753.06013664,0.00013415,2]
[421763764,1778119840000,-397.47350415,0.00013415,2]
[421764129,1778119843000,-31143.95328663,0.00013415,2]
[421764127,1778119843000,-4232.91153851,0.00013415,2]
[421764122,1778119843000,-5296.90217875,0.00013415,2]
[421764125,1778119843000,-524.77112864,0.00013415,2]
[421764114,1778119843000,-4980.29338595,0.00013415,2]
[421764483,1778119846000,-586.82466322,0.00013281,2]
[421764493,1778119846000,-54179.35107996,0.00013415,2]
[421764498,1778119846000,-31698.74615614,0.00013415,2]
[421764495,1778119846000,-2329.18508868,0.00013415,2]
[421764524,1778119846000,-299.77745085,0.00013415,2]
[421764491,1778119846000,-4413.17533678,0.00013281,2]
[421764890,1778120386000,555.29,0.0001972,120]
[421765034,1778121032000,-315.41460577,0.00011072,2]
[421765028,1778121032000,-1072.44673062,0.00010961,2]
[421765029,1778121032000,-2266.58364306,0.00010961,2]
[421765030,1778121032000,-449.47356353,0.00010961,2]
[421765031,1778121032000,-1173.51518978,0.00010961,2]
[421765032,1778121032000,-37.98087301,0.00010961,2]
[421765035,1778121032000,-422.20387383,0.00011072,2]
[421765045,1778121032000,-2630.42399426,0.000132,2]
[421765042,1778121032000,-204.13797349,0.00013017,2]
[421765044,1778121032000,-398.667,0.0001312,2]
[421765037,1778121032000,-161.57704075,0.0001234,2]
[421765043,1778121032000,-178.61847952,0.00013017,2]
[421765038,1778121032000,-456.3009281,0.00012561,2]
[421765040,1778121032000,-1002.6529718,0.00013,2]
[421765033,1778121032000,-324.36987543,0.00011017,2]
[421765120,1778121038000,-500.0,0.00013214,2]
[421765118,1778121038000,-500.0,0.00013214,2]
[421765122,1778121038000,-500.0,0.00013214,2]
[421765114,1778121038000,-2623.54,0.00010851,2]
[421765113,1778121038000,-2376.46,0.00010851,2]
[421765116,1778121038000,-1757.0232601,0.000132,2]
[421765124,1778121038000,-500.0,0.00013214,2]
[421765126,1778121038000,-500.0,0.00013214,2]
[421765128,1778121038000,-500.0,0.00013214,2]
[421765132,1778121038000,-500.0,0.00013214,2]
[421765134,1778121038000,-500.0,0.00013214,2]
[421765136,1778121038000,-500.0,0.00013214,2]
[421765138,1778121038000,-265.09721752,0.00013214,2]
[421765140,1778121038000,-500.0,0.00013214,2]
[421765130,1778121038000,-259.90606712,0.00013214,2]
[421765142,1778121038000,-112749.00507118,0.00013215,2]
[421765811,1778121044000,-1748.14042959,0.00013215,2]
[421765795,1778121044000,-3449.19726663,0.00013215,2]
[421765809,1778121044000,-251.11704093,0.00013215,2]
[421765799,1778121044000,-2092.84330633,0.00013215,2]
[421765804,1778121044000,-12337.5079093,0.00013215,2]
[421765802,1778121044000,-7524.02226955,0.00013215,2]
[421765819,1778121044000,-3779.90698828,0.00013215,2]
[421765829,1778121044000,-458.9215886,0.00013215,2]
[421765831,1778121044000,-560.6225,0.00013215,2]
[421765846,1778121044000,-380.183,0.00013215,2]
[421765797,1778121044000,-2907.15669367,0.00013215,2]
[421765946,1778121047000,-325.7108612,0.00013385,2]
[421765957,1778121047000,-1141.58562941,0.00013473,2]
[421765949,1778121047000,-600.0,0.00013468,2]
[421765948,1778121047000,-500.0,0.00013413,2]
[421765953,1778121047000,-1141.58562941,0.00013473,2]
[421765944,1778121047000,-456.3009281,0.00013385,2]
[421765954,1778121047000,-1141.58562941,0.00013473,2]
[421765952,1778121047000,-1141.58562941,0.00013473,2]
[421765955,1778121047000,-1141.58562941,0.00013473,2]
[421765950,1778121047000,-664.33,0.00013472,2]
[421765951,1778121047000,-597.27310645,0.00013473,2]
[421765956,1778121047000,-1141.58562941,0.00013473,2]
[421765937,1778121047000,-168.02,0.00013219,2]
[421765947,1778121047000,-500.0,0.00013413,2]
[421765945,1778121047000,-325.569081,0.00013385,2]
[421765941,1778121047000,-182.89,0.00013382,2]
[421765943,1778121047000,-151.9626062,0.00013385,2]
[421765940,1778121047000,-4288.4903135,0.00013366,2]
[421765938,1778121047000,-500.0,0.00013313,2]
[421765939,1778121047000,-582.47786515,0.00013313,2]
[421765960,1778121047000,-1141.58562941,0.00013473,2]
[421765942,1778121047000,-151.0,0.00013385,2]
[421765936,1778121047000,-33553.54247075,0.00013215,2]
[421765935,1778121047000,-5173.0,0.00013215,2]
[421765958,1778121047000,-1141.58562941,0.00013473,2]
[421765964,1778121047000,-1141.58562941,0.00013473,2]
[421765962,1778121047000,-1141.58562941,0.00013473,2]
[421765961,1778121047000,-1141.58562941,0.00013473,2]
[421765986,1778121047000,-500.0,0.00013587,2]
[421765987,1778121047000,-7433.90046414,0.00013598,2]
[421765984,1778121047000,-185.0,0.00013474,2]
[421765985,1778121047000,-780.79070388,0.00013498,2]
[421765976,1778121047000,-1303.07493339,0.00013473,2]
[421765975,1778121047000,-1303.07493339,0.00013473,2]
[421765982,1778121047000,-444.251,0.00013474,2]
[421765959,1778121047000,-1141.58562941,0.00013473,2]
[421765979,1778121047000,-2218.738,0.00013474,2]
[421765977,1778121047000,-1303.07493339,0.00013473,2]
[421765972,1778121047000,-1155.85544978,0.00013473,2]
[421765974,1778121047000,-1303.07493339,0.00013473,2]
[421765978,1778121047000,-1303.07493339,0.00013473,2]
[421765980,1778121047000,-647.0,0.00013474,2]
[421765973,1778121047000,-1155.85544978,0.00013473,2]
[421765983,1778121047000,-741.0,0.00013474,2]
[421765969,1778121047000,-1155.85544978,0.00013473,2]
[421765968,1778121047000,-1155.85544978,0.00013473,2]
[421765967,1778121047000,-1155.85544978,0.00013473,2]
[421765965,1778121047000,-1155.85544978,0.00013473,2]
[421765966,1778121047000,-1155.85544978,0.00013473,2]
[421765963,1778121047000,-1141.58562941,0.00013473,2]
[421765970,1778121047000,-1155.85544978,0.00013473,2]
[421765971,1778121047000,-1155.85544978,0.00013473,2]
[421765981,1778121047000,-1414.59,0.00013474,2]
[421766134,1778121059000,571.43230201,0.00019726,120]
[421766139,1778121742000,1014.69905797,0.00019726,120]
[421766145,1778122232000,-518.82331857,0.00011741,2]
[421766143,1778122232000,-3645.86752267,0.00011624,2]
[421766144,1778122232000,-3307.58296837,0.00011741,2]
[421766340,1778122238000,-509.541546,0.00011999,2]
[421766334,1778122238000,-453.0,0.00011741,2]
[421766346,1778122238000,-575.9666368,0.00011999,2]
[421766345,1778122238000,-135.63981449,0.00011999,2]
[421766336,1778122238000,-720.59371306,0.00011741,2]
[421766338,1778122238000,-300.0,0.00011999,2]
[421766343,1778122238000,-959.79616672,0.00011999,2]
[421766356,1778122238000,-959.79616672,0.00011999,2]
[421766350,1778122238000,-248.18971543,0.00011999,2]
[421766352,1778122238000,-959.79616672,0.00011999,2]
[421766351,1778122238000,-959.79616672,0.00011999,2]
[421766353,1778122238000,-959.79616672,0.00011999,2]
[421766355,1778122238000,-959.79616672,0.00011999,2]
[421766354,1778122238000,-959.79616672,0.00011999,2]
[421766342,1778122238000,-959.79616672,0.00011999,2]
[421766405,1778122239000,-151.0,0.00013007,2]
[421766401,1778122239000,-542.96834686,0.00013007,2]
[421766397,1778122239000,-500.0,0.00012949,2]
[421766400,1778122239000,-537.6845,0.00013007,2]
[421766396,1778122239000,-327.02752236,0.00012932,2]
[421766390,1778122239000,-500.0,0.00012741,2]
[421766391,1778122239000,-235.50182614,0.00012741,2]
[421766399,1778122239000,-516.12899052,0.00013007,2]
[421766393,1778122239000,-327.02752236,0.00012919,2]
[421766383,1778122239000,-500.0,0.00012741,2]
[421766392,1778122239000,-327.02752238,0.00012914,2]
[421766389,1778122239000,-500.0,0.00012741,2]
[421766387,1778122239000,-579.0524435,0.00012741,2]
[421766404,1778122239000,-151.0,0.00013007,2]
[421766403,1778122239000,-151.0,0.00013007,2]
[421766402,1778122239000,-151.0,0.00013007,2]
[421766398,1778122239000,-163.10537272,0.00013007,2]
[421766408,1778122239000,-151.0,0.00013007,2]
[421766418,1778122239000,-151.0,0.00013007,2]
[421766419,1778122239000,-151.0,0.00013007,2]
[421766407,1778122239000,-151.0,0.00013007,2]
[421766410,1778122239000,-151.0,0.00013007,2]
[421766411,1778122239000,-151.0,0.00013007,2]
[421766409,1778122239000,-151.0,0.00013007,2]
[421766412,1778122239000,-151.0,0.00013007,2]
[421766414,1778122239000,-151.0,0.00013007,2]
[421766416,1778122239000,-151.0,0.00013007,2]
[421766385,1778122239000,-500.0,0.00012741,2]
[421766406,1778122239000,-151.0,0.00013007,2]
[421766388,1778122239000,-500.0,0.00012741,2]
[421766417,1778122239000,-151.0,0.00013007,2]
[421766395,1778122239000,-327.02752236,0.00012928,2]
[421766357,1778122239000,-959.79616672,0.00011999,2]
[421766367,1778122239000,-695126.4343185,0.00012,2]
[421766359,1778122239000,-959.79616672,0.00011999,2]
[421766358,1778122239000,-959.79616672,0.00011999,2]
[421766368,1778122239000,-323.65182572,0.00012162,2]
[421766360,1778122239000,-959.79616672,0.00011999,2]
[421766363,1778122239000,-377.69784998,0.00011999,2]
[421766361,1778122239000,-959.79616672,0.00011999,2]
[421766365,1778122239000,-250.84854218,0.00011999,2]
[421766366,1778122239000,-500.0,0.00011999,2]
[421766362,1778122239000,-959.79616672,0.00011999,2]
[421766364,1778122239000,-500.0,0.00011999,2]
[421766370,1778122239000,-151.5,0.00012741,2]
[421766386,1778122239000,-500.0,0.00012741,2]
[421766376,1778122239000,-500.0,0.00012741,2]
[421766373,1778122239000,-280.21290215,0.00012741,2]
[421766372,1778122239000,-151.5,0.00012741,2]
[421766379,1778122239000,-500.0,0.00012741,2]
[421766380,1778122239000,-500.0,0.00012741,2]
[421766377,1778122239000,-500.0,0.00012741,2]
[421766371,1778122239000,-151.5,0.00012741,2]
[421766378,1778122239000,-648.1066961,0.00012741,2]
[421766381,1778122239000,-500.0,0.00012741,2]
[421766375,1778122239000,-500.0,0.00012741,2]
[421766382,1778122239000,-500.0,0.00012741,2]
[421766374,1778122239000,-154.28921329,0.00012741,2]
[421766384,1778122239000,-500.0,0.00012741,2]
[421766394,1778122239000,-327.02752236,0.00012923,2]
[421766369,1778122239000,-600.0,0.00012239,2]
[421766415,1778122239000,-151.0,0.00013007,2]
[421766452,1778122239000,-500.0,0.00013012,2]
[421766420,1778122239000,-151.0,0.00013007,2]
[421766457,1778122239000,-500.0,0.00013013,2]
[421766448,1778122239000,-500.0,0.00013012,2]
[421766450,1778122239000,-500.0,0.00013012,2]
[421766451,1778122239000,-500.0,0.00013012,2]
[421766459,1778122239000,-500.0,0.00013013,2]
[421766461,1778122239000,-500.0,0.00013013,2]
[421766462,1778122239000,-500.0,0.00013013,2]
[421766460,1778122239000,-500.0,0.00013013,2]
[421766469,1778122239000,-500.0,0.00013013,2]
[421766458,1778122239000,-500.0,0.00013013,2]
[421766470,1778122239000,-500.0,0.00013013,2]
[421766464,1778122239000,-500.0,0.00013013,2]
[421766465,1778122239000,-500.0,0.00013013,2]
[421766445,1778122239000,-500.0,0.00013012,2]
[421766468,1778122239000,-500.0,0.00013013,2]
[421766467,1778122239000,-500.0,0.00013013,2]
[421766471,1778122239000,-500.0,0.00013013,2]
[421766472,1778122239000,-500.0,0.00013013,2]
[421766480,1778122239000,-500.0,0.00013013,2]
[421766481,1778122239000,-500.0,0.00013013,2]
[421766482,1778122239000,-500.0,0.00013013,2]
[421766474,1778122239000,-500.0,0.00013013,2]
[421766473,1778122239000,-192.65443499,0.00013013,2]
[421766475,1778122239000,-500.0,0.00013013,2]
[421766479,1778122239000,-500.0,0.00013013,2]
[421766477,1778122239000,-500.0,0.00013013,2]
[421766476,1778122239000,-500.0,0.00013013,2]
[421766413,1778122239000,-151.0,0.00013007,2]
[421766466,1778122239000,-629.24851352,0.00013013,2]
[421766449,1778122239000,-503.63354709,0.00013012,2]
[421766463,1778122239000,-500.0,0.00013013,2]
[421766456,1778122239000,-500.0,0.00013013,2]
[421766447,1778122239000,-500.0,0.00013012,2]
[421766423,1778122239000,-500.0,0.00013012,2]
[421766421,1778122239000,-151.80853793,0.00013007,2]
[421766424,1778122239000,-500.0,0.00013012,2]
[421766431,1778122239000,-500.0,0.00013012,2]
[421766425,1778122239000,-500.0,0.00013012,2]
[421766428,1778122239000,-500.0,0.00013012,2]
[421766427,1778122239000,-500.0,0.00013012,2]
[421766426,1778122239000,-500.0,0.00013012,2]
[421766430,1778122239000,-500.0,0.00013012,2]
[421766429,1778122239000,-500.0,0.00013012,2]
[421766432,1778122239000,-500.0,0.00013012,2]
[421766439,1778122239000,-500.0,0.00013012,2]
[421766440,1778122239000,-500.0,0.00013012,2]
[421766443,1778122239000,-500.0,0.00013012,2]
[421766422,1778122239000,-500.0,0.00013012,2]
[421766478,1778122239000,-500.0,0.00013013,2]
[421766454,1778122239000,-500.0,0.00013013,2]
[421766455,1778122239000,-500.0,0.00013013,2]
[421766453,1778122239000,-161.57704075,0.00013012,2]
[421766444,1778122239000,-603.18,0.00013012,2]
[421766437,1778122239000,-500.0,0.00013012,2]
[421766438,1778122239000,-500.0,0.00013012,2]
[421766446,1778122239000,-500.0,0.00013012,2]
[421766434,1778122239000,-500.0,0.00013012,2]
[421766435,1778122239000,-500.0,0.00013012,2]
[421766433,1778122239000,-500.0,0.00013012,2]
[421766441,1778122239000,-161.80676232,0.00013012,2]
[421766442,1778122239000,-500.0,0.00013012,2]
[421766436,1778122239000,-500.0,0.00013012,2]
[421766528,1778122240000,-207.30322536,0.00013013,2]
[421766530,1778122240000,-500.0,0.00013013,2]
[421766529,1778122240000,-5180.5,0.00013013,2]
[421766537,1778122240000,-500.0,0.00013013,2]
[421766538,1778122240000,-500.0,0.00013013,2]
[421766525,1778122240000,-500.0,0.00013013,2]
[421766524,1778122240000,-500.0,0.00013013,2]
[421766517,1778122240000,-500.0,0.00013013,2]
[421766521,1778122240000,-500.0,0.00013013,2]
[421766523,1778122240000,-500.0,0.00013013,2]
[421766516,1778122240000,-500.0,0.00013013,2]
[421766539,1778122240000,-500.0,0.00013013,2]
[421766526,1778122240000,-500.0,0.00013013,2]
[421766527,1778122240000,-500.0,0.00013013,2]
[421766541,1778122240000,-500.0,0.00013013,2]
[421766531,1778122240000,-500.0,0.00013013,2]
[421766535,1778122240000,-500.0,0.00013013,2]
[421766533,1778122240000,-500.0,0.00013013,2]
[421766536,1778122240000,-500.0,0.00013013,2]
[421766534,1778122240000,-500.0,0.00013013,2]
[421766552,1778122240000,-500.0,0.00013013,2]
[421766554,1778122240000,-500.0,0.00013013,2]
[421766557,1778122240000,-317170.55100704,0.00013014,2]
[421766540,1778122240000,-500.0,0.00013013,2]
[421766556,1778122240000,-500.0,0.00013013,2]
[421766555,1778122240000,-500.0,0.00013013,2]
[421766558,1778122240000,-500.0,0.00013014,2]
[421766544,1778122240000,-500.0,0.00013013,2]
[421766532,1778122240000,-1042.08,0.00013013,2]
[421766515,1778122240000,-500.0,0.00013013,2]
[421766483,1778122240000,-395.56781504,0.00013013,2]
[421766511,1778122240000,-500.0,0.00013013,2]
[421766484,1778122240000,-217.68901601,0.00013013,2]
[421766494,1778122240000,-500.0,0.00013013,2]